{"text_format":"1","workbook":"xlsx","n_sheets":3,"sheets":["Calculo alimentadores","Tabla 310.16 CEN","Instrucciones"],"not_rendered":{"charts":0,"images":1,"macros":1,"external_links":0,"defined_names":3,"comments":0,"pivot_tables":0},"unopened":[],"bounds":{"document_bytes":16777216,"sheet_cells":100000,"rows_first":2000,"rows_last":500,"rows_between":2000,"halvings":0,"cell_chars":16384,"cell_head_chars":4096},"cells_cut":0,"cells_raw":0,"read":"whole","date_system":"1900"}

{"sheet":"Calculo alimentadores","index":0,"n_rows":75,"n_cols":11,"rows_kept":75,"cut":false,"hidden":false,"merged":[[22,0,22,10],[8,8,8,10],[0,8,0,10],[2,0,2,10],[3,0,3,10],[15,0,15,2],[18,8,18,10],[8,0,8,2],[11,0,11,2],[15,8,15,10],[14,4,14,6],[18,0,18,2],[7,4,7,6],[11,8,11,10],[1,8,1,10]]}
[null,null,null,null,null,null,null,null,"Diseñado por Ing. Gregor Rojas"]
[null,null,null,null,null,null,null,null,"Caracas - Venezuela"]
["PROGRAMA CÁLCULO DE ALIMENTADORES POR CAPACIDAD DE LA CARGA"]
["BASADO EN EL CÓDIGO ELÉCTRICO NACIONAL "]
[null,null,null,null,null,null,null,null,null,null,"VERSIÓN 1-2015"]
[]
[]
[null,null,null,null,"DATOS PARA EL CALCULO"]
["Carga expresada en",null,null,null,"Carga nominal:",206,{"$f":"IF(E65=1,\"KW\",IF(E65=2,\"HP\",IF(E65=3,\"A\",\"KVA\")))","v":"KVA"},null,"Voltaje de operación en voltios"]
[null,null,null,null,"Factor de potencia:",0.8,"fp",null,null,{"$f":"INDEX(I69:I75,I68,1)","v":208}]
[null,null,null,null,"Eficiencia:",95,"%"]
["Sistema",null,null,null,"Factor de diseño:",100,"%",null,"Temperatura ambiente en ºC"]
[]
[]
[null,null,null,null,"VALORES OBTENIDOS"]
["Material del conductor",null,null,null,{"$f":"IF(E65=3,\"Potencia:\",\"Corriente:\")","v":"Corriente:"},{"$f":"IF(E65=3,INDEX(E68:F71,E65,F65),INDEX(E68:F71,E65,F65)*F12/100)","v":571.79882429357167},{"$f":"IF(E65=3,\"Vatios\",\"Amperios\")","v":"Amperios"},null,"Calibre del conductor"]
[null,null,null,null,"Calibre del conductor:",{"$f":"INDEX('Tabla 310.16 CEN'!A10:A39,H65)","v":250},{"$f":"IF(F17<=18,\"AWG\",IF(F17=\"1/0\",\"AWG\",IF(F17=\"2/0\",\"AWG\",IF(F17=\"3/0\",\"AWG\",IF(F17=\"4/0\",\"AWG\",IF(F17>=250,\"MCM\",\"error\"))))))","v":"MCM"}]
[null,null,null,null,"Capacidad nominal del conductor:",{"$f":"INDEX('Tabla 310.16 CEN'!A10:G39,H65,I65)","v":230},"Amperios"]
["Temperatura del conductor",null,null,null,"Factor de correcion por temperatura:",{"$f":"INDEX('Tabla 310.16 CEN'!A43:G52,J65,I65)","v":1},"Tomado de Tabla 310.16 CEN",null,"Conductores por fase"]
[null,null,null,null,"Numero de onductores:",3,"por cada fase"]
[]
[null,null,null,null,"Capacidad global corregida:",{"$f":"F19*F18*F20","v":690},"Amperios"]
[{"$f":"IF(F16>F22,\"INCREMENTAR NUMERO DE CONDUCTORES POR FASE O SELECCIONAR UN CALIBRE MAYOR\",IF(AND(F16<=F22,F22<=F16*1.05),\"CANTIDAD DE CONDUCTORES POR FASE O SU CALIBRE SON ADECUADOS\",IF(F22>F16*1.05,\"CALIBRE DEL CONDUCTOR O SU NUMERO POR FASE ESTAN EXCEDIDOS (REAJUSTAR)\",\"ERROR\")))","v":"CALIBRE DEL CONDUCTOR O SU NUMERO POR FASE ESTAN EXCEDIDOS (REAJUSTAR)"}]
[]
[]
[]
[]
[]
[]
[]
[]
[]
[]
[]
[]
[]
[]
[]
[]
[]
[]
[]
[]
[]
[]
[]
[]
[]
[]
[]
[]
[]
[]
[]
[]
[]
[]
[]
[]
[]
[]
[]
[]
[null,null,null,null,"Carga expresada en","Sistema tipo","Material","calibre cable","Temperatura cable","Temp. ambiente"]
[null,null,null,null,4,2,2,16,{"$f":"IF(G65=1,1,4)+J68","v":7},2]
[null,null,null,null,"MONOFASICO","TRIFASICO","Cobre","1 por cada fase"]
[null,null,null,null,"TRIFASICO",null,"Aluminio","2 por cada fase","voltajes","Temperatura cable"]
[null,null,null,"KW",{"$f":"F9*1000/J10*F10","v":792.30769230769238},{"$f":"F9*1000/(SQRT(3)*J10*F10)","v":714.7485303669647},null,"3 por cada fase",2,3]
[null,null,null,"HP",{"$f":"(F9*745.69)/(J10*F10*F11/100)","v":971.7367155870445},{"$f":"(F9*745.69)/(SQRT(3)*J10*F10*F11/100)","v":561.03245432562301},null,"4 por cada fase",120,"60°C"]
[null,null,null,"A",{"$f":"J10*F9*F10","v":34278.400000000001},{"$f":"SQRT(3)*J10*F9*F10","v":59371.930402169004},null,"5 por cada fase",208,"75°C"]
[null,null,null,"KVA",{"$f":"F9*1000/J10","v":990.38461538461536},{"$f":"F9*1000/(SQRT(3)*J10)","v":571.79882429357167},null,"6 por cada fase",220,"90°C"]
[null,null,null,null,null,null,null,null,240]
[null,null,null,null,"Corriente",{"$f":"IF(E65=3,F9*F12/100,F16*F12/100)","v":571.79882429357167},null,null,277]
[null,null,null,null,null,null,null,null,460]
[null,null,null,null,null,null,null,null,480]

{"sheet":"Tabla 310.16 CEN","index":1,"n_rows":52,"n_cols":7,"rows_kept":52,"cut":false,"hidden":false,"merged":[[41,1,41,6],[3,0,3,6],[4,0,4,6],[5,0,8,0],[5,1,5,6],[40,0,40,6]]}
[]
[]
[]
["Tabla 310.16  CEN"]
["Ampacidades admisibles de los conductores aislados para tensiones nominales de 0 a 2000 V y 60°c a 90°c con no mas de tres conductores portadores de corriente en una canalización, cable o directamente enterrados, basadas en una temperatura ambiente de 30°c"]
["Calibre \nde los \nconductores \nAWG /Kcmil","Regimen de temperatura del conductor (vease tabla 310.13(A)"]
[null,"60°C","75°C","90°C","60°C","75°C","90°C"]
[null,"TW*, UF*","FEPW*, RH*, RHW*, THHW*, THW*, THWN*, XHHW*, USE*, ZW*","TBS, SA, SIS, FEP*, FEPB*, MI, RHH*, RHW-2, THHN*, THHW*, THW-2*, THWN-2*, USE-2, XHH, XHHW*, XHHW-2, ZW-2","TW*, UF*","RH*, RHW*, THHW*, THW*, THWN*, XHHW*, USE*","TBS, SA, SIS, THHN*, THHW*, THW-2, THWN-2, RHH*, RHW-2, USE-2, XHH, XHHW, XHHW-2, ZW-2"]
[null,null,"COBRE","COBRE","ALUMINIO","ALUMINIO"]
[18,0,0,14,0,0,0]
[16,0,0,18,0,0,0]
[14,20,20,25,0,0,0]
[12,25,25,30,0,20,25]
[10,30,35,40,25,30,35]
[8,40,50,55,30,40,45]
[6,55,65,75,40,50,60]
[4,70,85,95,55,65,75]
[3,85,100,110,65,75,85]
[2,95,115,130,75,90,100]
[1,110,130,150,85,100,115]
["1/0",125,150,170,100,120,135]
["2/0",145,175,195,115,135,150]
["3/0",165,200,225,130,155,175]
["4/0",195,230,260,150,180,205]
[250,215,255,290,170,205,230]
[300,240,285,320,190,230,255]
[350,260,310,350,210,250,280]
[400,280,335,380,225,270,305]
[500,320,380,430,260,310,350]
[600,355,420,475,285,340,385]
[700,385,460,520,310,375,420]
[750,400,475,535,320,385,435]
[800,410,490,555,330,395,450]
[900,435,520,585,355,425,480]
[1000,455,545,615,375,445,500]
[1250,495,590,665,405,485,545]
[1500,520,625,705,435,520,585]
[1750,545,650,735,455,545,615]
[2000,560,665,750,470,560,630]
[]
["FACTORES DE CORRECCION"]
["Temp. Ambiente (ºC)","Para temperaturas ambientes distintas a 30ºC se multiplican las ampacidades anteriores por los factores apropiados siguientes:"]
["21-25",1.08,1.05,1.04,1.08,1.05,1.04]
["26-30",1,1,1,1,1,1]
["31-35",0.91,0.94,0.96,0.91,0.94,0.96]
["36-40",0.82,0.88,0.91,0.82,0.88,0.91]
["41-45",0.71,0.82,0.87,0.71,0.82,0.87]
["46-50",0.57999999999999996,0.75,0.82,0.57999999999999996,0.75,0.82]
["51-55",0.41,0.67,0.76,0.41,0.67,0.76]
["56-60",null,0.57999999999999996,0.71,null,0.57999999999999996,0.71]
["61-70",null,0.33,0.57999999999999996,null,0.33,0.57999999999999996]
["71-80",null,null,0.41,null,null,0.41]

{"sheet":"Instrucciones","index":2,"n_rows":21,"n_cols":2,"rows_kept":21,"cut":false,"hidden":false,"merged":[]}
[null,"INSTRUCTIVO DE USO DEL PROGRAMA"]
[1,"Asegúrese de que las MACROS estén habilitadas"]
[2,"Seleccione de la lista desplegable ubicada a la izquierda debajo de \"Carga expresada en\" como esta expresada  la carga si en: amperios (A), kilovoltioamper (KVA), kilovatios (KW) o en Caballos de fuerza (HP)"]
[3,"Coloque el valor de la \"Carga nominal\" expresada en potencia o corriente según aplique en la primera casilla ubicada al centro con letras azules correspondiente de DATOS PARA EL CALCULO "]
[4,"Coloque el valor del \"Factor de potencia\" en la segunda casilla ubicada al centro con letras azules correspondiente de DATOS PARA EL CALCULO, este valor generalmente esta comprendido entre 0,7 y 1. Si no conoce este valor tome el promedio de 0,8."]
[5,"Coloque el valor de la \"Eficiencia\" en la tercera casilla  ubicada al centro con letras azules correspondiente de DATOS PARA EL CALCULO, si no conoce este valor asuma el 100%."]
[6,"Coloque el valor de la \"Factor de diseño\" en la cuarta casilla  ubicada al centro con letras azules correspondiente de DATOS PARA EL CALCULO, si no conoce este valor puede colocar 100%, no obstante por lo general se proyecta asumiendo un valor de 125% "]
[7,"Seleccione de la lista desplegable ubicada a la izquierda debajo de \"Sistema\" monofasico si es un sistema de 1 fase o trifasico si es un sistema de 3 fases."]
[8,"Seleccione de la lista desplegable ubicada a la derecha debajo de \"Voltaje de operación en voltios\" el nivel de voltaje con que opera el sistema."]
[9,"Realizados los pasos anteriores el programa calculara automáticamente la \"Corriente\" del sistema y lo expresara en amperios ubicandolo en la primera casilla debajo de  \"VALORES OBTENIDOS\""]
[10,"Seleccione de la lista desplegable ubicada a la derecha debajo de \"Temperatura ambiente en ºC \" en la cual se encuentra el sistema operando. Estos rangos de temperatura estan basados en la tabla 310.16 del CEN."]
[11,"Seleccione de la lista desplegable ubicada a la izquierda debajo de \"Material del conductor\" si el conductor esta hecho de cobre o de aluminio."]
[12,"Seleccione de la lista desplegable ubicada a la izquierda debajo de \"Temperatura del conductor\" la cual por normas esta impresa en la chaqueta del conductor en caso de que la desconosca, generalmente esta entre 60°C, 75°C o 90°C"]
[13,"Seleccione de la lista desplegable ubicada a la derecha debajo de \"Calibre del conductor\"   tamaño de conductor que requiere su sistema basado en la tabla 310.16 del CEN, es recomendable comenzar desde calibres menores e ir ajustando su calibre hasta que el programa indique \"CANTIDAD DE CONDUCTORES POR FASE O SU CALIBRE SON ADECUADOS\""]
[14,"Seleccione de la lista desplegable ubicada a la derecha debajo de \"Conductores por fase\" la cantidad de conductores que requiere su sistema, es recomendable comenzar desde 1 conductor e ir ajustando su numero hasta que el programa indique \"CANTIDAD DE CONDUCTORES POR FASE O SU CALIBRE SON ADECUADOS\""]
[15,"Es recomendable de las dos listas desplegables ubicadas a la derecha debajo de \"Calibre del conductor y Conductores por fase\" alternar entre ellas hasta lograr que el programa indique \"CANTIDAD DE CONDUCTORES POR FASE O SU CALIBRE SON ADECUADOS\""]
[16,"Realizados los pasos anteriores el programa calculara automáticamente el calibre del conductor y lo expresara tanto en AWG o MCM según aplique donde  se indica \"Calibre del conductor             AWG/MCM\""]
[17,"Haga \"click\" en el botón \"Ver tabla 310.16 del CEN\" para que el programa lo traslade a la misma en caso de requerirlo para alguna conprobacion."]
[18,"Haga \"click\" en el botón \"Ir a Calculo Alimentadores\" para que el programa lo retorne"]
[null,"NOTA:"]
[null,"Los datos de los conductores que maneja el programa, son tomados de la tabla 310.16 del CEN, verifique si los cables de su proyecto se ajustan a estos valores, en todo caso es una excelente referencia para el cálculo del calibre y numero de conductores que conforman un alimentador por cada fase."]